Workbook

Sheet メニュー
A2: 低コスト森林作業システム原価計算プログラム
F3: Version 2.0.4
F4: 静岡県林業技術センター
B15: パターン１ | D15: パターン２ | F15: パターン３
B16: グラップル付きバックホー＋林内作業車/フォワーダ | D16: グラップル付きフォワーダ | F16: ウインチ付き林内作業車

Sheet パターン１
A1: パターン１：グラップル付きバックホー＋林内作業車/フォワーダ
B3: （計算方法） | P3: 機械費用
P4: グラップル付きバックホー
P5: 機種名
B6: （作業条件） | G6: （計算結果） | U6: ベースマシン | V6: バケット | W6: グラップル | X6: ウインチ
B7: 積み込み時間 | C7: 分/m3 | D7: 15.729 | G7: 総運材回数 | H7: 回 | I7: =D11/D8 -> 60 | P7: 減価償却費 | Q7: 円/日 | R7: =R8/U10 -> 13757.14286 | S7: 価格 | T7: 円 | U7: 7650000 | V7: 150000 | W7: 1600000 | X7: 1300000
B8: 積み込み量 | C8: m3/車 | D8: 3 | G8: サイクルタイム | H8: 時：分：秒 | Q8: 円/年 | R8: =SUM(U19:X19) -> 1926000 | S8: 償却年数 | T8: 年 | U8: 5 | V8: 5 | W8: 5 | X8: 5
B9: 運材距離 | C9: m | D9: 640 | G9: 日運行回数 | H9: 回/日 | I9: =10^D102*(共通データ!D11/6.5) -> 5.616026295 | S9: 残存価格率 | T9: ％ | U9: 10 | V9: 10 | W9: 10 | X9: 10
B10: 運行速度 | C10: km/時 | D10: 4.61 | G10: 日運搬量 | H10: m3/日 | S10: 年計画稼働日数 | T10: 日/年 | U10: 140 | V10: 20 | W10: 120 | X10: 120
B11: 運材総量 | C11: m3 | D11: 180 | G11: 運材稼働日数 | H11: 日 | I11: =I7/I9+0.354 -> 11.03771066 | P11: 修繕費 | Q11: 円/日 | R11: =U12*U13*U7/100 -> 4455.36 | S11: 年実稼働日数 | T11: 日/年 | U11: 150
B12: 機械片道運搬費 | C12: 円 | D12: =共通データ!D10 -> 20000 | G12: 機械費用 | H12: 円 | I12: =SUM(D16:D18)*I11 -> 370105.4762 | Q12: 円/年 | R12: =R11*U11 -> 668304 | S12: 日作業時間 | T12: 時間/日 | U12: =共通データ!D11 -> 6.5
B13: 一人一日賃金 | C13: 円/日 | D13: =共通データ!D12 -> 16800 | G13: 機械消耗品費 | H13: 円 | I13: =D21*D11+D22*D11+D23*I11 -> 11266.98048 | S13: 稼働時間当たり係数 | U13: 0.00896
G14: 機械運搬費 | H14: 円 | I14: =D12*2*2 -> 80000 | P14: 燃料費 | Q14: 円/日 | R14: =R15*U12 -> 2069.1775 | S14: 軽油消費量 | T14: ㍑/時 | U14: 3.359
B15: （機械費用） | Q15: 円/時 | R15: =U14*共通データ!D$4+U15*共通データ!D$5+U16*共通データ!D$6+U17*共通データ!D$7 -> 318.335 | S15: エンジンオイル消費量 | T15: ㍑/時 | U15: 0.0475
B16: グラップル費用 | C16: 円/日 | D16: 20281 | G16: 社会保険料等 | H16: 円/人・日 | I16: =共通データ!D22 -> 4140.96 | S16: 作動油消費量 | T16: ㍑/時 | U16: 0.085
B17: 林内作業車/フォワーダ費用 | C17: 円/日 | D17: 12377 | G17: 賃金・保険料計 | H17: 円 | I17: =(D13+I16)*I11*D26 -> 462280.5149 | S17: グリス消費量 | T17: ㍑/時 | U17: 0.01
B18: チェンソー費用 | C18: 円/日 | D18: 873 | P18: 費用合計 | Q18: 円/日 | R18: =INT(R7+R11+R14) -> 20281
G19: 総費用 | H19: 円 | I19: =I12+I13+I14+I17 -> 923652.9715 | U19: =U7*((100-U9)/100)/U8 -> 1377000 | V19: =V7*((100-V9)/100)/V8 -> 27000 | W19: =W7*((100-W9)/100)/W8 -> 288000 | X19: =X7*((100-X9)/100)/X8 -> 234000
B20: （消耗品費） | G20: 生産コスト | H20: 円/m3 | I20: =I19/D11 -> 5131.405397
B21: グラップル消耗品費 | C21: 円/m3 | D21: 26 | P21: 林内作業車/フォワーダ
B22: 林内作業車/フォワーダ消耗品費 | C22: 円/m3 | D22: 35 | G22: 伐倒コスト | H22: 円/m3 | I22: =(D13+D18+D23+I16)/D25 -> 2542.486612 | P22: 機種名
B23: チェンソー消耗品費 | C23: 円/日 | D23: 26 | G23: 運搬コスト | H23: 円/m3 | I23: 0 | P23: 減価償却費 | Q23: 円/日 | R23: =U23*((100-U25)/100)/U24/U26 -> 7500 | S23: 価格 | T23: 円 | U23: 5000000
G24: 総生産コスト | H24: 円/m3 | I24: =I20+I22+I23 -> 7673.89201 | Q24: 円/年 | R24: =R23*U26 -> 900000 | S24: 償却年数 | T24: 年 | U24: 5
B25: 伐倒作業功程 | C25: m3/日 | D25: 8.59 | S25: 残存価格率 | T25: ％ | U25: 10
B26: 作業人員 | C26: 人 | D26: 2 | S26: 年計画稼働日数 | T26: 日/年 | U26: 120
P27: 修繕費 | Q27: 円/日 | R27: =U28*U29*U23/100 -> 2587 | S27: 年実稼働日数 | T27: 日/年 | U27: 130
Q28: 円/年 | R28: =R27*U27 -> 336310 | S28: 日作業時間 | T28: 時間/日 | U28: =共通データ!D11 -> 6.5
S29: 稼働時間当たり係数 | U29: 0.00796
P30: 燃料費 | Q30: 円/日 | R30: =R31*U28 -> 2290.99 | S30: 軽油消費量 | T30: ㍑/時 | U30: 4.584
Q31: 円/時 | R31: =U30*共通データ!D$4+U31*共通データ!D$5+U32*共通データ!D$6 -> 352.46 | S31: エンジンオイル消費量 | T31: ㍑/時 | U31: 0.032
S32: 作動油消費量 | T32: ㍑/時 | U32: 0.045
P33: 費用合計 | Q33: 円/日 | R33: =INT(R23+R27+R30) -> 12377
P36: チェンソー
P37: 機種名
P38: 減価償却費 | Q38: 円/日 | R38: =U38*((100-U40)/100)/U39/U41 -> 382.5 | S38: 価格 | T38: 円 | U38: 153000
Q39: 円/年 | R39: =R38*U41 -> 45900 | S39: 償却年数 | T39: 年 | U39: 3
S40: 残存価格率 | T40: ％ | U40: 10
S41: 年計画稼働日数 | T41: 日/年 | U41: 120
P42: 修繕費 | Q42: 円/日 | R42: =U43*U44*U38/100 -> 168.76665 | S42: 年実稼働日数 | T42: 日/年 | U42: 120
Q43: 円/年 | R43: =R42*U42 -> 20251.998 | S43: 日作業時間 | T43: 時間/日 | U43: =共通データ!D11 -> 6.5
S44: 稼働時間当たり係数 | U44: 0.01697
P45: 燃料費 | Q45: 円/日 | R45: 322
P47: 費用合計 | Q47: 円/日 | R47: =INT(R38+R42+R45) -> 873
B96: パラメータA | C96: Paa | D96: 1.5740473
C97: Pab | D97: 0.0052126
C98: ｙ | D98: =D96-D97*(D10/60*1000) -> 1.173545867
B99: パラメータb | C99: Pba | D99: 0.3596854
C100: Pbb | D100: 0.0027143
C101: ｙ | D101: =D99-D100*(D10/60*1000) -> 0.1511366833
B102: パラメータI | C102: I | D102: =D98-D101*LOG(D9,10) -> 0.7494291326
P103: 機械費用
P104: グラップル付きバックホー
B105: 初期値 | P105: 機種名
B106: （作業条件） | U106: ベースマシン | V106: バケット | W106: グラップル | X106: ウインチ
B107: 積み込み時間 | C107: 分/m3 | D107: 15.729 | P107: 減価償却費 | Q107: 円/日 | R107: =R108/U110 -> 13757.14286 | S107: 価格 | T107: 円 | U107: 7650000 | V107: 150000 | W107: 1600000 | X107: 1300000
B108: 積み込み量 | C108: m3/車 | D108: 3 | Q108: 円/年 | R108: =SUM(U119:X119) -> 1926000 | S108: 償却年数 | T108: 年 | U108: 5 | V108: 5 | W108: 5 | X108: 5
B109: 運材距離 | C109: m | D109: 640 | S109: 残存価格率 | T109: ％ | U109: 10 | V109: 10 | W109: 10 | X109: 10
B110: 運行速度 | C110: km/時 | D110: 4.61 | S110: 年計画稼働日数 | T110: 日/年 | U110: 140 | V110: 20 | W110: 120 | X110: 120
B111: 運材総量 | C111: m3 | D111: 180 | P111: 修繕費 | Q111: 円/日 | R111: =U112*U113*U107/100 -> 0 | S111: 年実稼働日数 | T111: 日/年 | U111: 150
B112: 機械片道運搬費 | C112: 円 | Q112: 円/年 | R112: =R111*U111 -> 0 | S112: 日作業時間 | T112: 時間/日 | U112: =共通データ!D111 -> 0
B113: 一人一日賃金 | C113: 円/日 | S113: 稼働時間当たり係数 | U113: 0.00896
P114: 燃料費 | Q114: 円/日 | R114: =R115*U112 -> 0 | S114: 軽油消費量 | T114: ㍑/時 | U114: 3.359
B115: （機械費用） | Q115: 円/時 | R115: =U114*共通データ!D$4+U115*共通データ!D$5+U116*共通データ!D$6+U117*共通データ!D$7 -> 318.335 | S115: エンジンオイル消費量 | T115: ㍑/時 | U115: 0.0475
B116: グラップル費用 | C116: 円/日 | D116: 20281 | S116: 作動油消費量 | U116: 0.085
B117: 林内作業車/フォワーダ費用 | C117: 円/日 | D117: 12377 | S117: グリス消費量 | T117: ㍑/時 | U117: 0.01
B118: チェンソー費用 | C118: 円/日 | D118: 873 | P118: 費用合計 | Q118: 円/日 | R118: =INT(R107+R111+R114) -> 13757
U119: =U107*((100-U109)/100)/U108 -> 1377000 | V119: =V107*((100-V109)/100)/V108 -> 27000 | W119: =W107*((100-W109)/100)/W108 -> 288000 | X119: =X107*((100-X109)/100)/X108 -> 234000
B120: （消耗品費）
B121: グラップル消耗品費 | C121: 円/m3 | D121: 26 | P121: 林内作業車/フォワーダ
B122: 林内作業車/フォワーダ消耗品費 | C122: 円/m3 | D122: 35 | P122: 機種名
B123: チェンソー消耗品費 | C123: 円/日 | D123: 26 | P123: 減価償却費 | Q123: 円/日 | R123: =U123*((100-U125)/100)/U124/U126 -> 7500 | S123: 価格 | T123: 円 | U123: 5000000
Q124: 円/年 | R124: =R123*U126 -> 900000 | S124: 償却年数 | T124: 年 | U124: 5
S125: 残存価格率 | T125: ％ | U125: 10
S126: 年計画稼働日数 | T126: 日/年 | U126: 120
P127: 修繕費 | Q127: 円/日 | R127: =U128*U129*U123/100 -> 0 | S127: 年実稼働日数 | T127: 日/年 | U127: 130
Q128: 円/年 | R128: =R127*U127 -> 0 | S128: 日作業時間 | T128: 時間/日 | U128: =共通データ!D111 -> 0
S129: 稼働時間当たり係数 | U129: 0.00796
P130: 燃料費 | Q130: 円/日 | R130: =R131*U128 -> 0 | S130: 軽油消費量 | T130: ㍑/時 | U130: 4.584
Q131: 円/時 | R131: =U130*共通データ!D$4+U131*共通データ!D$5+U132*共通データ!D$6 -> 352.46 | S131: エンジンオイル消費量 | T131: ㍑/時 | U131: 0.032
S132: 作動油消費量 | T132: ㍑/時 | U132: 0.045
P133: 費用合計 | Q133: 円/日 | R133: =INT(R123+R127+R130) -> 7500
P136: チェンソー
P137: 機種名
P138: 減価償却費 | Q138: 円/日 | R138: =U138*((100-U140)/100)/U139/U141 -> 382.5 | S138: 価格 | T138: 円 | U138: 153000
Q139: 円/年 | R139: =R138*U141 -> 45900 | S139: 償却年数 | T139: 年 | U139: 3
S140: 残存価格率 | T140: ％ | U140: 10
S141: 年計画稼働日数 | T141: 日/年 | U141: 120
P142: 修繕費 | Q142: 円/日 | R142: =U143*U144*U138/100 -> 0 | S142: 年実稼働日数 | T142: 日/年 | U142: 120
Q143: 円/年 | R143: =R142*U142 -> 0 | S143: 日作業時間 | T143: 時間/日 | U143: =共通データ!D111 -> 0
S144: 稼働時間当たり係数 | U144: 0.01697
P145: 燃料費 | Q145: 円/日 | R145: 322
P147: 費用合計 | Q147: 円/日 | R147: =INT(R138+R142+R145) -> 704

Sheet パターン２
A1: パターン２：グラップル付きフォワーダ
B3: （計算方法） | P3: 機械費用
P4: グラップル付きフォワーダ
P5: 機種名
B6: （作業条件） | G6: （計算結果） | P6: 減価償却費 | Q6: 円/日 | R6: =U6*((100-U8)/100)/U7/U9 -> 11025 | S6: 価格 | T6: 円 | U6: 7350000
B7: 積み込み時間 | C7: 分/m3 | D7: 12.583 | G7: 総運材回数 | H7: 回 | I7: =D11/D8 -> 64.58333333 | Q7: 円/年 | R7: =R6*U9 -> 1323000 | S7: 償却年数 | T7: 年 | U7: 5
B8: 積み込み量 | C8: m3/車 | D8: 2.4 | G8: サイクルタイム | H8: 分 | S8: 残存価格率 | T8: ％ | U8: 10
B9: 運材距離 | C9: m | D9: 400 | G9: 日運行回数 | H9: 回/日 | I9: =10^D102*(共通データ!D11/6.5) -> 8.218755693 | S9: 年計画稼働日数 | T9: 日/年 | U9: 120
B10: 運行速度 | C10: km/時 | D10: 3.2 | G10: 日運搬量 | H10: m3/日 | P10: 修繕費 | Q10: 円/日 | R10: =U11*U12*U6/100 -> 3802.89 | S10: 年実稼働日数 | T10: 日/年 | U10: 110
B11: 運材総量 | C11: m3 | D11: 155 | G11: 運材稼働日数 | H11: 日 | I11: =I7/I9 -> 7.858042719 | Q11: 円/年 | R11: =R10*U10 -> 418317.9 | S11: 日作業時間 | T11: 時間/日 | U11: =共通データ!D11 -> 6.5
B12: 機械片道運搬費 | C12: 円 | D12: =共通データ!D10 -> 20000 | G12: 機械費用 | H12: 円 | I12: =SUM(D17:D18)*I11 -> 141884.8193 | S12: 稼働時間当たり係数 | U12: 0.00796
B13: 一人一日賃金 | C13: 円/日 | D13: =共通データ!D12 -> 16800 | G13: 機械消耗品費 | H13: 円 | I13: =+D21*D11+D22*I11 -> 5629.309111 | P13: 燃料費 | Q13: 円/日 | R13: =R14*U11 -> 2355.99 | S13: 軽油消費量 | T13: ㍑/時 | U13: 4.584
G14: 機械運搬費 | H14: 円 | I14: =D12*2 -> 40000 | Q14: 円/時 | R14: =U13*共通データ!D$4+U14*共通データ!D$5+U15*共通データ!D$6+U16*共通データ!D$7 -> 362.46 | S14: エンジンオイル消費量 | T14: ㍑/時 | U14: 0.032
S15: 作動油消費量 | T15: ㍑/時 | U15: 0.045
B16: （機械費用） | G16: 社会保険料等 | H16: 円/人・日 | I16: =共通データ!D22 -> 4140.96 | S16: グリス消費量 | T16: ㍑/時 | U16: 0.01
B17: フォワーダ費用 | C17: 円/日 | D17: 17183 | G17: 賃金・保険料計 | H17: 円 | I17: =(D13+I16)*I11 -> 164554.9583 | P17: 費用合計 | Q17: 円/日 | R17: =INT(R6+R10+R13) -> 17183
B18: チェンソー費用 | C18: 円/日 | D18: 873
G19: 総費用 | H19: 円 | I19: =I12+I13+I14+I17 -> 352069.0867
B20: （消耗品費） | G20: 生産コスト | H20: 円/m3 | I20: =I19/D11 -> 2271.413463 | P20: チェンソー
B21: フォワーダ消耗品費 | C21: 円/m3 | D21: 35 | P21: 機種名
B22: チェンソー消耗品費 | C22: 円/日 | D22: 26 | G22: 伐倒コスト | H22: 円/m3 | I22: =(D13+D18+D22+I16)/D24 -> 1048.485838 | P22: 減価償却費 | Q22: 円/日 | R22: =U22*((100-U24)/100)/U23/U25 -> 382.5 | S22: 価格 | T22: 円 | U22: 153000
G23: 運搬コスト | H23: 円/m3 | I23: 0 | Q23: 円/年 | R23: =R22*U25 -> 45900 | S23: 償却年数 | T23: 年 | U23: 3
B24: 伐倒作業功程 | C24: m3/日 | D24: 20.83 | G24: 総生産コスト | H24: 円/m3 | I24: =I20+I22+I23 -> 3319.8993 | S24: 残存価格率 | T24: ％ | U24: 10
B25: 作業人員 | C25: 人 | D25: 1 | S25: 年計画稼働日数 | T25: 日/年 | U25: 120
P26: 修繕費 | Q26: 円/日 | R26: =U27*U28*U22/100 -> 168.76665 | S26: 年実稼働日数 | T26: 日/年 | U26: 120
Q27: 円/年 | R27: =R26*U26 -> 20251.998 | S27: 日作業時間 | T27: 時間/日 | U27: =共通データ!D11 -> 6.5
S28: 稼働時間当たり係数 | U28: 0.01697
P29: 燃料費 | Q29: 円/日 | R29: 322
P31: 費用合計 | Q31: 円/日 | R31: =INT(R22+R26+R29) -> 873
B96: パラメータA | C96: Paa | D96: 2.1733788
C97: Pab | D97: 0.0087618
C98: ｙ | D98: =D96-D97*(D10/60*1000) -> 1.7060828
B99: パラメータb | C99: Pba | D99: 0.5658936
C100: Pbb | D100: 0.0049087
C101: ｙ | D101: =D99-D100*(D10/60*1000) -> 0.3040962667
B102: パラメータI | C102: I | D102: =D98-D101*LOG(D9,10) -> 0.914806071
P103: 機械費用
P104: グラップル付きフォワーダ
P105: 機種名
B106: （作業条件） | P106: 減価償却費 | Q106: 円/日 | R106: =U106*((100-U108)/100)/U107/U109 -> 11025 | S106: 価格 | T106: 円 | U106: 7350000
B107: 積み込み時間 | C107: 分/m3 | D107: 12.583 | Q107: 円/年 | R107: =R106*U109 -> 1323000 | S107: 償却年数 | T107: 年 | U107: 5
B108: 積み込み量 | C108: m3/車 | D108: 2.4 | S108: 残存価格率 | T108: ％ | U108: 10
B109: 運材距離 | C109: m | D109: 400 | S109: 年計画稼働日数 | T109: 日/年 | U109: 120
B110: 運行速度 | C110: km/時 | D110: 3.2 | P110: 修繕費 | Q110: 円/日 | R110: =U111*U112*U106/100 -> 0 | S110: 年実稼働日数 | T110: 日/年 | U110: 110
B111: 運材総量 | C111: m3 | D111: 155 | Q111: 円/年 | R111: =R110*U110 -> 0 | S111: 日作業時間 | T111: 時間/日 | U111: =共通データ!D109 -> 0
B112: 機械片道運搬費 | C112: 円 | D112: =共通データ!D110 -> 0 | S112: 稼働時間当たり係数 | U112: 0.00796
B113: 一人一日賃金 | C113: 円/日 | D113: =共通データ!D112 -> 0 | P113: 燃料費 | Q113: 円/日 | R113: =R114*U111 -> 0 | S113: 軽油消費量 | T113: ㍑/時 | U113: 4.584
Q114: 円/時 | R114: =U113*共通データ!D$4+U114*共通データ!D$5+U116*共通データ!D$6 -> 334.96 | S114: エンジンオイル消費量 | T114: ㍑/時 | U114: 0.032
S115: 作動油消費量 | T115: ㍑/時 | U115: 0.045
B116: （機械費用） | S116: グリス消費量 | T116: ㍑/時 | U116: 0.01
B117: 林内作業車/フォワーダ費用 | C117: 円/日 | D117: 17183 | P117: 費用合計 | Q117: 円/日 | R117: =INT(R106+R110+R113) -> 11025
B118: チェンソー費用 | C118: 円/日 | D118: 873
B120: （消耗品費） | P120: チェンソー
B121: 林内作業車/フォワーダ消耗品費 | C121: 円/m3 | D121: 35 | P121: 機種名
B122: チェンソー消耗品費 | C122: 円/日 | D122: 26 | P122: 減価償却費 | Q122: 円/日 | R122: =U122*((100-U124)/100)/U123/U125 -> 382.5 | S122: 価格 | T122: 円 | U122: 153000
Q123: 円/年 | R123: =R122*U125 -> 45900 | S123: 償却年数 | T123: 年 | U123: 3
S124: 残存価格率 | T124: ％ | U124: 10
S125: 年計画稼働日数 | T125: 日/年 | U125: 120
P126: 修繕費 | Q126: 円/日 | R126: =U127*U128*U122/100 -> 0 | S126: 年実稼働日数 | T126: 日/年 | U126: 120
Q127: 円/年 | R127: =R126*U126 -> 0 | S127: 日作業時間 | T127: 時間/日 | U127: =共通データ!D109 -> 0
S128: 稼働時間当たり係数 | U128: 0.01697
P129: 燃料費 | Q129: 円/日 | R129: 322
P131: 費用合計 | Q131: 円/日 | R131: =INT(R122+R126+R129) -> 704

Sheet パターン３
A1: パターン３：ウインチ付き林内作業車
B3: （計算方法） | P3: 機械費用
P4: ウインチ付き林内作業車
P5: 機種名
B6: （作業条件） | G6: （計算結果） | P6: 減価償却費 | Q6: 円/日 | R6: =U6*((100-U8)/100)/U7/U9 -> 6408 | S6: 価格 | T6: 円 | U6: 1780000
B7: 積み込み時間（ウインチ使わず） | C7: 分/m3 | D7: 24.973 | G7: 総運材回数 | H7: 回 | I7: =D12/D9 -> 70 | Q7: 円/年 | R7: =R6*U9 -> 320400 | S7: 償却年数 | T7: 年 | U7: 5
B8: 積み込み時間（ウインチ使う） | C8: 分/m3 | D8: 39.654 | G8: サイクルタイム | H8: 分 | S8: 残存価格率 | T8: ％ | U8: 10
B9: 積み込み量 | C9: m3/車 | D9: 1.2 | G9: 日運行回数 | H9: 回/日 | I9: =10^D104*(共通データ!D11/6.5)*(1-D13/100)+10^I104*(共通データ!D11/6.5)*(D13/100) -> 6.877674669 | S9: 年計画稼働日数 | T9: 日/年 | U9: 50
B10: 運材距離 | C10: m | D10: 200 | G10: 日運搬量 | H10: m3/日 | P10: 修繕費 | Q10: 円/日 | R10: =U11*U12*U6/100 -> 920.972 | S10: 年実稼働日数 | T10: 日/年 | U10: 120
B11: 運行速度 | C11: km/時 | D11: 2 | G11: 運材稼働日数 | H11: 日 | I11: =I7/I9 -> 10.17785856 | Q11: 円/年 | R11: =R10*U10 -> 110516.64 | S11: 日作業時間 | T11: 時間/日 | U11: =共通データ!D$11 -> 6.5
B12: 運材総量 | C12: m3 | D12: 84 | G12: 機械費用 | H12: 円 | I12: =SUM(D19:D20)*I11 -> 90857.74336 | S12: 稼働時間当たり係数 | U12: 0.00796
B13: ウインチ使用率 | C13: ％ | D13: 42.5 | G13: 機械消耗品費 | H13: 円 | I13: =D23*D12+D24*I11 -> 3204.624323 | P13: 燃料費 | Q13: 円/日 | R13: =R14*U11 -> 725.725 | S13: 軽油消費量 | T13: ㍑/時 | U13: 1.59
B14: 機械片道運搬費 | C14: 円 | D14: 7000 | G14: 機械運搬費 | H14: 円 | I14: =D14*2 -> 14000 | Q14: 円/時 | R14: =U13*共通データ!D$4+U14*共通データ!D$5+U15*共通データ!D$6+U16*共通データ!D$7 -> 111.65 | S14: エンジンオイル消費量 | T14: ㍑/時 | U14: 0.0075
B15: 一人一日賃金 | C15: 円/日 | D15: =共通データ!D12 -> 16800 | S15: 作動油消費量 | T15: ㍑/時 | U15: 0.0016
G16: 社会保険料等 | H16: 円/人・日 | I16: =共通データ!D22 -> 4140.96
G17: 賃金・保険料計 | H17: 円 | I17: =(D15+I16)*I11 -> 213134.129 | P17: 費用合計 | Q17: 円/日 | R17: =INT(R6+R10+R13) -> 8054
B18: （機械費用）
B19: 林内作業車費用 | C19: 円/日 | D19: 8054 | G19: 総費用 | H19: 円 | I19: =I12+I13+I14+I17 -> 321196.4966
B20: チェンソー費用 | C20: 円/日 | D20: 873 | G20: 生産コスト | H20: 円/m3 | I20: =I19/D12 -> 3823.767817 | P20: チェンソー
P21: 機種名
B22: （消耗品費） | G22: 伐倒コスト | H22: 円/m3 | I22: =(D15+D20+D24+I16)/D26 -> 1048.485838 | P22: 減価償却費 | Q22: 円/日 | R22: =U22*((100-U24)/100)/U23/U25 -> 382.5 | S22: 価格 | T22: 円 | U22: 153000
B23: 林内作業車消耗品費 | C23: 円/m3 | D23: 35 | G23: 運搬コスト | H23: 円/m3 | I23: 0 | Q23: 円/年 | R23: =R22*U25 -> 45900 | S23: 償却年数 | T23: 年 | U23: 3
B24: チェンソー消耗品費 | C24: 円/日 | D24: 26 | G24: 総生産コスト | H24: 円/m3 | I24: =I20+I22+I23 -> 4872.253655 | S24: 残存価格率 | T24: ％ | U24: 10
S25: 年計画稼働日数 | T25: 日/年 | U25: 120
B26: 伐倒作業功程 | C26: m3/日 | D26: 20.83 | P26: 修繕費 | Q26: 円/日 | R26: =U27*U28*U22/100 -> 168.76665 | S26: 年実稼働日数 | T26: 日/年 | U26: 120
B27: 作業人員 | C27: 人 | D27: 1 | Q27: 円/年 | R27: =R26*U26 -> 20251.998 | S27: 日作業時間 | T27: 時間/日 | U27: =共通データ!D$11 -> 6.5
S28: 稼働時間当たり係数 | U28: 0.01697
P29: 燃料費 | Q29: 円/日 | R29: 322
P31: 費用合計 | Q31: 円/日 | R31: =INT(R22+R26+R29) -> 873
B97: ウインチ使用しない場合 | G97: ウインチ使用する場合
B98: パラメータA | C98: Paa | D98: 2.1520988 | G98: パラメータA | H98: Paa | I98: 1.8162363
C99: Pab | D99: 0.0126998 | H99: Pab | I99: 0.012036
C100: ｙ | D100: =D98-D99*(D11/60*1000) -> 1.728772133 | H100: ｙ | I100: =I98-I99*(D11/60*1000) -> 1.4150363
B101: パラメータb | C101: Pba | D101: 0.607866 | G101: パラメータb | H101: Pba | I101: 0.5044679
C102: Pbb | D102: 0.0072783 | H102: Pbb | I102: 0.0065614
C103: ｙ | D103: =D101-D102*(D11/60*1000) -> 0.365256 | H103: ｙ | I103: =I101-I102*(D11/60*1000) -> 0.2857545667 | P103: 機械費用
B104: パラメータI | C104: I | D104: =D100-D103*LOG(D10,10) -> 0.8883071212 | G104: パラメータI | H104: I | I104: =I100-I103*LOG(D10,10) -> 0.7575064707 | P104: グラップル付きフォワーダ
P105: 機種名
B106: （作業条件） | P106: 減価償却費 | Q106: 円/日 | R106: =U106*((100-U108)/100)/U107/U109 -> 6408 | S106: 価格 | T106: 円 | U106: 1780000
B107: 積み込み時間（ウインチ使わず） | C107: 分/m3 | D107: 24.973 | Q107: 円/年 | R107: =R106*U109 -> 320400 | S107: 償却年数 | T107: 年 | U107: 5
B108: 積み込み時間（ウインチ使う） | C108: 分/m3 | D108: 39.654 | S108: 残存価格率 | T108: ％ | U108: 10
B109: 積み込み量 | C109: m3/車 | D109: 1.2 | S109: 年計画稼働日数 | T109: 日/年 | U109: 50
B110: 運材距離 | C110: m | D110: 200 | P110: 修繕費 | Q110: 円/日 | R110: =U111*U112*U106/100 -> 805.272 | S110: 年実稼働日数 | T110: 日/年 | U110: 120
B111: 運行速度 | C111: km/時 | D111: 2 | Q111: 円/年 | R111: =R110*U110 -> 96632.64 | S111: 日作業時間 | T111: 時間/日 | U111: =共通データ!D$11 -> 6.5
B112: 運材総量 | C112: m3 | D112: 84 | S112: 稼働時間当たり係数 | U112: 0.00696
B113: ウインチ使用率 | C113: ％ | D113: 42.5 | P113: 燃料費 | Q113: 円/日 | R113: =R114*U111 -> 725.725 | S113: 軽油消費量 | T113: ㍑/時 | U113: 1.59
B114: 機械片道運搬費 | C114: 円 | D114: 7000 | Q114: 円/時 | R114: =U113*共通データ!D$4+U114*共通データ!D$5+U115*共通データ!D$6 -> 111.65 | S114: エンジンオイル消費量 | T114: ㍑/時 | U114: 0.0075
B115: 一人一日賃金 | C115: 円/日 | D115: =共通データ!D112 -> 0 | S115: 作動油消費量 | T115: ㍑/時 | U115: 0.0016
P117: 費用合計 | Q117: 円/日 | R117: =INT(R106+R110+R113) -> 7938
B118: （機械費用）
B119: 林内作業車費用 | C119: 円/日 | D119: 8054
B120: チェンソー費用 | C120: 円/日 | D120: 873 | P120: チェンソー
P121: 機種名
B122: （消耗品費） | P122: 減価償却費 | Q122: 円/日 | R122: =U122*((100-U124)/100)/U123/U125 -> 382.5 | S122: 価格 | T122: 円 | U122: 153000
B123: 林内作業車消耗品費 | C123: 円/m3 | D123: 35 | Q123: 円/年 | R123: =R122*U125 -> 45900 | S123: 償却年数 | T123: 年 | U123: 3
B124: チェンソー消耗品費 | C124: 円/日 | D124: 26 | S124: 残存価格率 | T124: ％ | U124: 10
S125: 年計画稼働日数 | T125: 日/年 | U125: 120
P126: 修繕費 | Q126: 円/日 | R126: =U127*U128*U122/100 -> 0 | S126: 年実稼働日数 | T126: 日/年 | U126: 120
Q127: 円/年 | R127: =R126*U126 -> 0 | S127: 日作業時間 | T127: 時間/日 | U127: =共通データ!D109 -> 0
S128: 稼働時間当たり係数 | U128: 0.01697
P129: 燃料費 | Q129: 円/日 | R129: 322
P131: 費用合計 | Q131: 円/日 | R131: =INT(R122+R126+R129) -> 704

Sheet 共通データ
A1: 共通データ
B3: （燃料単価）
B4: 軽油 | C4: 円/㍑ | D4: 65
B5: エンジンオイル | C5: 円/㍑ | D5: 1000
B6: 作動油 | C6: 円/㍑ | D6: 500
B7: グリス | C7: 円/㍑ | D7: 1000
B9: （運搬費・賃金等）
B10: 機械片道運搬費 | C10: 円 | D10: 20000
B11: １日作業時間 | C11: 時間/日 | D11: 6.5
B12: １人１日賃金 | C12: 円/人・日 | D12: 16800
B14: （社会保険料等）
B15: 雇用保険料率 | C15: 賃金の●/1000 | D15: 13.5
B16: 労災保険料率 | C16: 賃金の●/1000 | D16: 59
B17: （共済費）
B18: 通年雇用 | C18: 円/人・日 | D18: 140
B19: 農林年金 | C19: 賃金の●％ | D19: 19.49 | E19: 労使1/2ずつ負担
B20: 政管健保 | C20: 賃金の●％ | D20: 8.2 | E20: 労使1/2ずつ負担
B21: 林退協 | C21: 円/人・日 | D21: 457
B22: 合計 | C22: 円/人・日 | D22: =D12*(D15/1000+D16/1000+D19/200+D20/200)+D18+D21 -> 4140.96

Sheet 原価計算表
A2: 原価計算表
B5: 低 コ ス ト 森 林 作 業 シ ス テ ム 原 価 計 算 表
B6: パターン１：グラップル付きバックホー＋林内作業車/フォワーダ
B8: 材料費 | C8: 運材燃料費 | D8: =SUM(L8:L10) -> 51680.41013 | E8: バックホー | F8: =パターン１!R14 -> 2069.1775 | G8: 円／日 | H8: × | I8: 11.03771066 | J8: 日 | K8: ＝ | L8: =F8*I8 -> 22838.98255 | M8: 円
E9: フォワーダ/林内作業車 | F9: =パターン１!R30 -> 2290.99 | G9: 円／日 | H9: × | I9: 11.03771066 | J9: 日 | K9: ＝ | L9: =F9*I9 -> 25287.28475 | M9: 円
E10: チェンソー | F10: =パターン１!R45 -> 322 | G10: 円／日 | H10: × | I10: 11.03771066 | J10: 日 | K10: ＝ | L10: 3554.142833 | M10: 円
C11: 消耗品費 | D11: =SUM(L11:L13) -> 11266.98048 | E11: バックホー | F11: =パターン１!D21 -> 26 | G11: 円／ｍ３ | H11: × | I11: 180 | J11: ｍ３ | K11: ＝ | L11: 4680 | M11: 円
E12: フォワーダ/林内作業車 | F12: =パターン１!D22 -> 35 | G12: 円／ｍ３ | H12: × | I12: 180 | J12: ｍ３ | K12: ＝ | L12: =F12*I12 -> 6300 | M12: 円
E13: チェンソー | F13: =パターン１!D23 -> 26 | G13: 円／日 | H13: × | I13: 11.03771066 | J13: 日 | K13: ＝ | L13: =F13*I13 -> 286.9804772 | M13: 円
C14: 小計 | D14: =D8+D11 -> 62947.39061
B15: 経費 | C15: 減価償却費 | D15: =SUM(L15:L17) -> 238852.1167 | E15: バックホー | F15: =パターン１!R7 -> 13757.14286 | G15: 円／日 | H15: × | I15: 11.03771066 | J15: 日 | K15: ＝ | L15: =F15*I15 -> 151847.3624 | M15: 円
E16: フォワーダ/林内作業車 | F16: =パターン１!R23 -> 7500 | G16: 円／日 | H16: × | I16: 11.03771066 | J16: 日 | K16: ＝ | L16: 82782.82996 | M16: 円
E17: チェンソー | F17: =パターン１!R38 -> 382.5 | G17: 円／日 | H17: × | I17: 11.03771066 | J17: 日 | K17: ＝ | L17: 4221.924328 | M17: 円
C18: 修繕費 | D18: =SUM(L18:L20) -> 79594.3295 | E18: バックホー | F18: =パターン１!R11 -> 4455.36 | G18: 円／日 | H18: × | I18: 11.03771066 | J18: 日 | K18: ＝ | L18: 49176.97457 | M18: 円
E19: フォワーダ/林内作業車 | F19: =パターン１!R27 -> 2587 | G19: 円／日 | H19: × | I19: 11.03771066 | J19: 日 | K19: ＝ | L19: 28554.55748 | M19: 円
E20: チェンソー | F20: =パターン１!R42 -> 168.76665 | G20: 円／日 | H20: × | I20: 11.03771066 | J20: 日 | K20: ＝ | L20: 1862.797452 | M20: 円
C21: 機械運搬費 | D21: =SUM(L21:L22) -> 80000 | F21: 20000 | G21: 円／台 | H21: × | I21: 4 | J21: 回 | K21: ＝ | L21: 80000 | M21: 円
C23: 保険料・労災外 | D23: =L24 -> 45706.71834 | F23: =共通データ!D22 -> 4140.96 | G23: 円／人・日 | H23: × | I23: 1 | J23: 人
H24: × | I24: 11.03771066 | J24: 日 | K24: ＝ | L24: =F23*I23*I24 -> 45706.71834 | M24: 円
C25: 小計 | D25: =D15+D18+D21+D23 -> 444153.1645
B26: 労務費 | C26: 賃金 | D26: =L27 -> 185433.5391 | F26: =共通データ!D12 -> 16800 | G26: 円／人・日 | H26: × | I26: 1 | J26: 人
H27: × | I27: 11.03771066 | J27: 日 | K27: ＝ | L27: =F26*I26*I27 -> 185433.5391 | M27: 円
C29: 小計 | D29: =D26 -> 185433.5391
B30: 合計 | D30: =D14+D25+D29 -> 692534.0942 | E30: 円
B31: 運搬数量 | D31: 180 | E31: ｍ３
B32: 運材原価 | D32: =D30/D31 -> 3847.411634 | E32: 円／ｍ３
B33: 総人工数 | D33: =1*I24 -> 11.03771066 | E33: 人・日

Sheet 原価計算表ひな型
A2: 原価計算表
B5: 低 コ ス ト 森 林 作 業 シ ス テ ム 原 価 計 算 表
B8: 材料費 | C8: 運材燃料費 | D8: =SUM(L8:L10) -> 0 | G8: 円／日 | H8: × | J8: 日 | K8: ＝ | L8: =F8*I8 -> 0 | M8: 円
C11: 消耗品費 | D11: =SUM(L11:L13) -> 0 | G11: 円／ｍ３ | H11: × | J11: ｍ３ | K11: ＝ | L11: =F11*I11 -> 0 | M11: 円
C14: 小計 | D14: =D8+D11 -> 0
B15: 経費 | C15: 減価償却費 | D15: =SUM(L15:L17) -> 0 | G15: 円／日 | H15: × | J15: 日 | K15: ＝ | L15: =F15*I15 -> 0 | M15: 円
C18: 修繕費 | D18: =SUM(L18:L20) -> 0 | G18: 円／日 | H18: × | J18: 日 | K18: ＝ | L18: =F18*I18 -> 0 | M18: 円
C21: 機械運搬費 | D21: =SUM(L21:L22) -> 0 | F21: =共通データ!D10 -> 20000 | G21: 円／台 | H21: × | J21: 回 | K21: ＝ | L21: =F21*I21 -> 0 | M21: 円
C23: 保険料・労災外 | D23: =L24 -> 0 | F23: =共通データ!D22 -> 4140.96 | G23: 円／人・日 | H23: × | J23: 人
H24: × | J24: 日 | K24: ＝ | L24: =F23*I23 -> 0 | M24: 円
C25: 小計 | D25: =D15+D18+D21+D23 -> 0
B26: 労務費 | C26: 賃金 | D26: =L26 -> 0 | F26: =共通データ!D12 -> 16800 | G26: 円／人・日 | H26: × | J26: 人
H27: × | J27: 日 | K27: ＝ | L27: =F27*I27 -> 0 | M27: 円
C29: 小計 | D29: =D26 -> 0
B30: 合計 | D30: =D14+D25+D29 -> 0 | E30: 円
B31: 運搬数量 | D31: 1 | E31: ｍ３
B32: 運材原価 | D32: =D30/D31 -> 0 | E32: 円／ｍ３
B33: 総人工数 | D33: 1 | E33: 人・日
